[Event "Estonian-ch Open 2020"]
[Site "Paul Kerese Malemaja"]
[Date "2020.08.15"]
[Round "8.5"]
[White "Chukavin, Kirill"]
[Black "Sepp, Olav"]
[Result "0-1"]
[ECO "C58"]
[WhiteElo "2345"]
[BlackElo "2410"]
[Annotator "ChessBase"]
[PlyCount "58"]
[EventDate "2020.08.09"]
[EventCountry "EST"]
[SourceTitle "playchess.com"]
[Source "ChessBase"]
[SourceQuality "1"]
[TimeControl "40/5400+30:900+30"]

1. e4 {[%emt 0:00:51]} e5 {[%emt 0:00:00]} 2. Nf3 {[%emt 0:00:15]} Nc6 {[%emt 0:00:00]} 3. Bc4 {[%emt 0:00:08]} Nf6 {[%emt 0:00:42]} 4. Ng5 {[%emt 0:00:13]} d5 {[%emt 0:00:16]} 5. exd5 {[%emt 0:00:06]} Na5 {[%emt 0:00:03]} 6. Bb5+ {[%emt 0:00:06]} c6 {[%emt 0:00:05]} 7. dxc6 {[%emt 0:00:04]} bxc6 {[%emt 0:00:05]} 8. Qf3 {[%emt 0:00:04]} Be7 {[%emt 0:00:06]} 9. Bd3 {[%emt 0:00:08]} h6 {[%emt 0:10:21]} 10. Ne4 {[%emt 0:00:06]} Nd5 {[%emt 0:00:05]} 11. Ng3 {[%emt 0:00:07]} g6 {[%emt 0:03:00]} 12. O-O {[%emt 0:00:07]} h5 {[%emt 0:18:15]} 13. Re1 {[%emt 0:00:41]} Qc7 {[%emt 0:14:56]} 14. a3 {[%emt 0:17:33]} h4 {[%emt 0:06:14]} 15. Nf1 {[%emt 0:02:34]} f5 {[%emt 0:02:21]} 16. Qd1 {[%emt 0:17:14]} Nf4 {[%emt 0:11:27]} 17. b4 {[%emt 0:23:47]} Nb3 {[%emt 0:01:01]} 18. Bb2 {[%emt 0:00:25]} Bf6 {[%emt 0:01:20]} 19. Ra2 {[%emt 0:12:40]} Be6 {[%emt 0:05:02]} 20. Bc4 {[%emt 0:07:05]} Bxc4 {[%emt 0:01:23]} 21. cxb3 {[%emt 0:00:07]} Bd3 {[%emt 0:08:06]} 22. Qf3 {[%emt 0:01:58]} O-O-O {[%emt 0:03:17]} 23. Ne3 {[%emt 0:03:36]} g5 {[%emt 0:08:28]} 24. Nc4 {[%emt 0:00:49]} g4 {[%emt 0:01:18]} 25. Qe3 {[%emt 0:00:35]} Be4 {[%emt 0:01:25]} 26. Qxf4 {[%emt 0:03:46]} exf4 {[%emt 0:00:04]} 27. Bxf6 {[%emt 0:00:06]} g3 {[%emt 0:01:13]} 28. f3 {[%emt 0:01:44]} gxh2+ {[%emt 0:00:27]} 29. Kxh2 {[%emt 0:00:40]} h3 {[%emt 0:01:52]} 0-1

[Event "Estonian-ch Open 2020"]
[Site "Paul Kerese Malemaja"]
[Date "2020.08.16"]
[Round "9.2"]
[White "Kiik, Kalle"]
[Black "Chukavin, Kirill"]
[Result "1/2-1/2"]
[ECO "A13"]
[WhiteElo "2386"]
[BlackElo "2348"]
[Annotator "ChessBase"]
[PlyCount "29"]
[EventDate "2020.08.09"]
[EventCountry "EST"]
[SourceTitle "playchess.com"]
[Source "ChessBase"]
[SourceQuality "1"]
[TimeControl "40/5400+30:900+30"]

1. c4 {[%emt 0:00:00]} e6 {[%emt 0:00:00]} 2. Nf3 {[%emt 0:00:11]} d5 {[%emt 0:00:48]} 3. e3 {[%emt 0:00:21]} Nf6 {[%emt 0:00:39]} 4. b3 {[%emt 0:00:32]} c5 {[%emt 0:00:52]} 5. cxd5 {[%emt 0:00:38]} exd5 {[%emt 0:04:19]} 6. Bb2 {[%emt 0:00:25]} Nc6 {[%emt 0:03:37]} 7. Be2 {[%emt 0:00:23]} a6 {[%emt 0:12:08]} 8. d4 {[%emt 0:07:47]} cxd4 {[%emt 0:03:35]} 9. Nxd4 {[%emt 0:00:08]} Bb4+ {[%emt 0:00:15]} 10. Bc3 {[%emt 0:00:14]} Qa5 {[%emt 0:00:44]} 11. Qd2 {[%emt 0:12:32]} Bxc3 {[%emt 0:24:26]} 12. Nxc3 {[%emt 0:01:48]} Nxd4 {[%emt 0:02:09]} 13. Qxd4 {[%emt 0:00:21]} O-O {[%emt 0:00:29]} 14. O-O {[%emt 0:00:54]} Be6 15. b4 {[%emt 0:07:46]} 1/2-1/2

[Event "Estonian-ch Open 2020"]
[Site "Paul Kerese Malemaja"]
[Date "2020.08.16"]
[Round "9.3"]
[White "Kulaots, Kaido"]
[Black "Seeman, Tarvo"]
[Result "1/2-1/2"]
[ECO "B38"]
[WhiteElo "2524"]
[BlackElo "2415"]
[Annotator "ChessBase"]
[PlyCount "31"]
[EventDate "2020.08.09"]
[EventCountry "EST"]
[SourceTitle "playchess.com"]
[Source "ChessBase"]
[SourceQuality "1"]
[TimeControl "40/5400+30:900+30"]

1. e4 {[%emt 0:00:00]} c5 {[%emt 0:00:00]} 2. Nf3 {[%emt 0:00:00]} g6 {[%emt 0:00:00]} 3. d4 {[%emt 0:00:15]} cxd4 {[%emt 0:00:00]} 4. Nxd4 {[%emt 0:00:04]} Bg7 {[%emt 0:00:00]} 5. c4 {[%emt 0:01:20]} Nc6 {[%emt 0:00:39]} 6. Be3 {[%emt 0:00:21]} Nf6 {[%emt 0:00:09]} 7. Nc3 {[%emt 0:00:06]} O-O {[%emt 0:00:21]} 8. Be2 {[%emt 0:00:16]} d6 {[%emt 0:00:15]} 9. O-O {[%emt 0:00:11]} Bd7 {[%emt 0:00:23]} 10. h3 {[%emt 0:02:00]} Nxd4 {[%emt 0:03:04]} 11. Bxd4 {[%emt 0:00:23]} Bc6 {[%emt 0:00:12]} 12. Qc2 {[%emt 0:00:13]} a5 {[%emt 0:01:10]} 13. Rad1 {[%emt 0:00:23]} a4 {[%emt 0:04:19]} 14. c5 {[%emt 0:01:11]} Qa5 {[%emt 0:00:45]} 15. cxd6 {[%emt 0:01:32]} exd6 {[%emt 0:00:05]} 16. a3 {[%emt 0:03:07]} 1/2-1/2